fUSD/lending_fUSD_20251126
["ID","MTS","AMOUNT","RATE_DAILY","PERIOD"]
[394918911,1764119106118,-561.13831823,0.0004194,30]
[394918912,1764119106146,-182.07728342,0.0004194,60]
[394918913,1764119106174,-1003.73692406,0.0004194,120]
[394918914,1764119106202,-196.83,0.0004194,120]
[394918915,1764119106230,-1022.48402682,0.0004194,30]
[394918916,1764119106257,-57794.81,0.0004194,30]
[394918917,1764119106285,-43632.7,0.0004194,90]
[394918918,1764119106312,-500.0,0.0004194,31]
[394918919,1764119106340,-500.0,0.0004194,31]
[394918920,1764119106368,-500.0,0.0004194,31]
[394918921,1764119106395,-500.0,0.0004194,31]
[394918922,1764119106423,-500.0,0.0004194,31]
[394918923,1764119106450,-500.0,0.0004194,31]
[394918924,1764119106482,-500.0,0.0004194,31]
[394918925,1764119106513,-500.0,0.0004194,31]
[394918926,1764119106544,-500.0,0.0004194,31]
[394918927,1764119106573,-500.0,0.0004194,31]
[394918928,1764119106600,-500.0,0.0004194,31]
[394918929,1764119106629,-513.72670678,0.0004194,31]
[394918930,1764119106657,-500.0,0.0004194,31]
[394918931,1764119106685,-500.0,0.0004194,31]
[394918932,1764119106712,-500.0,0.0004194,31]
[394918933,1764119106741,-500.0,0.0004194,31]
[394918934,1764119106768,-500.0,0.0004194,31]
[394918935,1764119106797,-500.0,0.0004194,31]
[394918936,1764119106824,-500.0,0.0004194,31]
[394918937,1764119106854,-500.0,0.0004194,31]
[394918938,1764119106884,-500.0,0.0004194,31]
[394918939,1764119106919,-500.0,0.0004194,31]
[394918940,1764119106951,-500.0,0.0004194,31]
[394918941,1764119106982,-500.0,0.0004194,31]
[394918942,1764119107014,-500.0,0.0004194,31]
[394918943,1764119107049,-500.0,0.0004194,31]
[394918944,1764119107079,-500.0,0.0004194,31]
[394918945,1764119107107,-500.0,0.0004194,31]
[394918946,1764119107134,-500.0,0.0004194,31]
[394918947,1764119107162,-500.0,0.0004194,31]
[394918948,1764119107188,-500.0,0.0004194,31]
[394918949,1764119107217,-500.0,0.0004194,31]
[394918950,1764119107371,-500.0,0.0004194,31]
[394918951,1764119107400,-500.0,0.0004194,31]
[394918952,1764119107436,-500.0,0.0004194,31]
[394918953,1764119107464,-188.05936337,0.0004194,31]
[394918954,1764119107491,-607.71418777,0.0004194,90]
[394918955,1764119107518,-403.45334768,0.0004194,120]
[394918956,1764119107544,-767.73597171,0.0004194,30]
[394918957,1764119107571,-955.38526097,0.0004194,120]
[394918958,1764119107598,-298.08434641,0.0004194,120]
[394918959,1764119107624,-525.37808929,0.0004194,120]
[394918960,1764119107650,-749.53385254,0.0004194,120]
[394918961,1764119107676,-13131.0,0.0004194,30]
[394918962,1764119107701,-380.98597866,0.0004194,120]
[394918963,1764119107727,-1722.39223097,0.0004194,60]
[394918964,1764119107752,-7456.57556969,0.0004194,60]
[394918965,1764119107778,-661.6530596,0.0004194,120]
[394918966,1764119107805,-384.05864004,0.0004194,120]
[394918967,1764119107831,-223.5325847,0.0004194,60]
[394918968,1764119107857,-333.2931292,0.0004194,48]
[394918969,1764119107889,-487.10864775,0.0004194,30]
[394918970,1764119107915,-562.39998729,0.0004194,30]
[394918971,1764119107942,-410.66542825,0.0004194,30]
[394918972,1764119107968,-493.08111635,0.0004194,45]
[394918973,1764119107994,-216.68316787,0.0004194,120]
[394918974,1764119108023,-1707.6665039,0.0004194,30]
[394918975,1764119108049,-565.13667995,0.0004194,120]
[394918976,1764119108076,-1093.0,0.0004194,30]
[394918977,1764119108103,-542.07,0.0004194,120]
[394918978,1764119108131,-828.596682,0.0004194,60]
[394918979,1764119108158,-434.0,0.0004194,30]
[394918980,1764119108185,-796.06551598,0.0004194,30]
[394918981,1764119108211,-100000.0,0.0004194,30]
[394918982,1764119108237,-1064.4068767,0.0004194,120]
[394918983,1764119108263,-676.835047,0.0004194,30]
[394918984,1764119108290,-100000.0,0.0004194,60]
[394918985,1764119108316,-100000.0,0.0004194,68]
[394918986,1764119108342,-100000.0,0.0004194,30]
[394918987,1764119108368,-117900.0,0.0004194,60]
[394918988,1764119108399,-1792.11,0.0004194,30]
[394918989,1764119108426,-968.45386546,0.0004194,120]
[394918990,1764119108455,-225.83258526,0.0004194,30]
[394918991,1764119108484,-50000.0,0.0004194,30]
[394918992,1764119108513,-4038.0,0.0004194,30]
[394918993,1764119108541,-4000.0,0.0004194,30]
[394918994,1764119108568,-305043.497,0.0004194,120]
[394918995,1764119108595,-21966.58,0.0004194,30]
[394918996,1764119108622,-1513794.19234829,0.0004194,30]
[394918997,1764119108648,-35536.00808931,0.0004194,120]
[394918998,1764119108677,-50000.0,0.0004194,31]
[394918999,1764119108704,-1219380.65489954,0.0004194,120]
[394919000,1764119108730,-5370.99854588,0.0004194,120]
[394919001,1764119108755,-335000.0,0.0004194,120]
[394919002,1764119108783,-50000.0,0.0004194,32]
[394919003,1764119108809,-9496.08,0.0004194,120]
[394919004,1764119108838,-164.19,0.0004194,120]
[394919005,1764119108867,-400.0,0.0004194,30]
[394919006,1764119108893,-400.0,0.0004194,30]
[394919007,1764119108922,-400.0,0.0004194,30]
[394919008,1764119108947,-400.0,0.0004194,30]
[394919009,1764119108974,-400.0,0.0004194,30]
[394919010,1764119109001,-400.0,0.0004194,30]
[394919011,1764119109028,-400.0,0.0004194,30]
[394919012,1764119109057,-400.0,0.0004194,30]
[394919013,1764119109084,-331.75306804,0.0004194,30]
[394919014,1764119109110,-680.21,0.0004194,120]
[394919015,1764119109140,-340.36416532,0.0004194,30]
[394919016,1764119109167,-1824.0,0.0004194,120]
[394919017,1764119109194,-235.0,0.0004194,30]
[394919018,1764119109222,-801.34975198,0.0004194,61]
[394919019,1764119109247,-163.21935519,0.0004194,120]
[394919020,1764119109272,-7057.50442695,0.0004194,30]
[394919021,1764119109298,-41728.13025435,0.0004194,30]
[394919022,1764119109326,-50000.0,0.0004194,33]
[394919023,1764119109351,-5100.0,0.0004194,36]
[394919024,1764119109379,-37277.14676938,0.0004194,120]
[394919025,1764119109405,-401.57003164,0.0004194,120]
[394919026,1764119109432,-500.0,0.0004194,120]
[394919027,1764119109460,-500.0,0.0004194,120]
[394919028,1764119109488,-500.0,0.0004194,120]
[394919029,1764119109515,-500.0,0.0004194,120]
[394919030,1764119109543,-500.0,0.0004194,120]
[394919031,1764119109570,-500.0,0.0004194,120]
[394919032,1764119109597,-500.0,0.0004194,120]
[394919033,1764119109625,-500.0,0.0004194,120]
[394919034,1764119109655,-500.0,0.0004194,120]
[394919035,1764119109683,-500.0,0.0004194,120]
[394919036,1764119109710,-500.0,0.0004194,120]
[394919037,1764119109737,-500.0,0.0004194,120]
[394919038,1764119109763,-500.0,0.0004194,120]
[394919039,1764119109791,-500.0,0.0004194,120]
[394919040,1764119109817,-500.0,0.0004194,120]
[394919041,1764119109844,-500.0,0.0004194,120]
[394919042,1764119109871,-500.0,0.0004194,120]
[394919043,1764119109898,-500.0,0.0004194,120]
[394919044,1764119109926,-500.0,0.0004194,120]
[394919045,1764119109959,-500.0,0.0004194,120]
[394919046,1764119109986,-1096.0,0.0004194,30]
[394919047,1764119110013,-1096.0,0.0004194,30]
[394919048,1764119110040,-1096.0,0.0004194,30]
[394919049,1764119110066,-520.22306853,0.0004194,30]
[394919050,1764119110091,-1096.0,0.0004194,30]
[394919051,1764119110116,-189.70303452,0.0004194,120]
[394919052,1764119110154,-1510.81830232,0.0004194,120]
[394919053,1764119110183,-200.0,0.0004194,30]
[394919054,1764119110376,-692.43078714,0.0004194,120]
[394919055,1764119110405,-1921.77594087,0.0004194,120]
[394919056,1764119131370,-250.0,0.00039324,120]
[394919057,1764119131400,-343.53118262,0.00039597,120]
[394919058,1764119131427,-160.0,0.000398,120]
[394919059,1764119131454,-10110.20058055,0.0004,30]
[394919060,1764119131481,-173.58810173,0.000401,84]
[394919061,1764119131507,-10000.0,0.000403,30]
[394919062,1764119131534,-431.0,0.00040711,30]
[394919063,1764119131562,-160.0,0.00041,120]
[394919064,1764119131588,-12622.89197438,0.00041,30]
[394919065,1764119131615,-177.69,0.00041123,30]
[394919066,1764119131641,-150.0,0.00041123,30]
[394919067,1764119131669,-177.69,0.00041123,30]
[394919068,1764119131701,-177.69,0.00041123,30]
[394919069,1764119131728,-175.98,0.00041123,30]
[394919070,1764119131755,-150.0,0.00041123,30]
[394919071,1764119131780,-150.0,0.00041123,30]
[394919072,1764119131805,-150.0,0.00041123,30]
[394919073,1764119131832,-150.0,0.00041123,30]
[394919074,1764119131859,-150.0,0.00041123,30]
[394919075,1764119131885,-150.0,0.00041123,30]
[394919076,1764119131912,-150.0,0.00041123,30]
[394919077,1764119131942,-431.0,0.0004113,30]
[394919078,1764119131972,-431.0,0.0004155,30]
[394919079,1764119132001,-177.69,0.000418,30]
[394919080,1764119132028,-150.0,0.000418,30]
[394919081,1764119132057,-196.21191862,0.000419,120]
[394919082,1764119132085,-500.0,0.00041938,120]
[394919083,1764119132129,-210.0,0.00041961,120]
[394919084,1764119132156,-211.0,0.00041966,120]
[394919085,1764119132187,-500.0,0.00041968,30]
[394919086,1764119132213,-431.0,0.0004197,30]
[394919087,1764119132243,-50000.0,0.00042,42]
[394919088,1764119132269,-823.09176357,0.00042,120]
[394919089,1764119132295,-661.0,0.00042,120]
[394919090,1764119132320,-181.01947241,0.00042,120]
[394919091,1764119132345,-196.56,0.00042,30]
[394919092,1764119132372,-500.0,0.00042,30]
[394919093,1764119132398,-500.0,0.00042,30]
[394919094,1764119132425,-500.0,0.00042,30]
[394919095,1764119132456,-500.0,0.00042,30]
[394919096,1764119132483,-165.12253018,0.00042,30]
[394919097,1764119132510,-3249.03,0.00042,30]
[394919098,1764119132539,-157.46,0.00042,30]
[394919099,1764119132565,-150.0,0.00042,30]
[394919100,1764119132592,-150.0,0.00042,30]
[394919101,1764119132620,-500.0,0.00042075,120]
[394919102,1764119132649,-414.63,0.00042125,30]
[394919103,1764119132678,-500.0,0.00042212,120]
[394919104,1764119132710,-388.15708076,0.00042349,120]
[394919105,1764119132740,-431.0,0.00042389,30]
[394919106,1764119132770,-168.0,0.0004242,120]
[394919107,1764119132798,-150.0,0.00042435,120]
[394919108,1764119132828,-1003.57,0.0004248,120]
[394919109,1764119132855,-759.88,0.000425,120]
[394919110,1764119132887,-166.66,0.00042719,30]
[394919111,1764119132914,-431.0,0.00042809,30]
[394919112,1764119132941,-3249.03,0.000429,30]
[394919113,1764119132968,-250.0,0.000429,120]
[394919114,1764119132995,-300.0,0.000429,120]
[394919115,1764119133022,-1318.60293053,0.00043,120]
[394919116,1764119133049,-150.0,0.00043,120]
[394919117,1764119133077,-308.87800674,0.00043,120]
[394919118,1764119133103,-440.12080853,0.00043,120]
[394919119,1764119133129,-175.51061342,0.00043,120]
[394919120,1764119133156,-476.6404653,0.00043,120]
[394919121,1764119133182,-500.0,0.00043,30]
[394919122,1764119133209,-152.45927143,0.00043,120]
[394919123,1764119133235,-204.22,0.00043014,120]
[394919124,1764119133262,-1559.24296786,0.000432,120]
[394919125,1764119133289,-1003.57,0.000432,120]
[394919126,1764119133474,-196.21191862,0.000432,120]
[394919127,1764119133503,-185.35,0.0004322,30]
[394919128,1764119133530,-431.0,0.00043229,30]
[394919129,1764119133558,-359.0,0.000436,120]
[394919130,1764119133585,-229.85158902,0.000437,120]
[394919131,1764119133612,-500.56138842,0.000438,30]
[394919132,1764119133638,-881.27648782,0.000438,30]
[394919133,1764119133664,-757.79440988,0.000438,120]
[394919134,1764119133689,-776.16,0.000438,120]
[394919135,1764119133715,-3249.03,0.000438,30]
[394919136,1764119133740,-500.0,0.0004388,120]
[394919137,1764119133768,-150.0,0.000439,120]
[394919138,1764119133794,-567.0,0.000439,31]
[394919139,1764119133820,-500.0,0.00043913,120]
[394919140,1764119133846,-500.0,0.00043913,120]
[394919141,1764119133873,-1003.57,0.0004392,120]
[394919142,1764119133898,-500.0,0.00043977,120]
[394919143,1764119133925,-3281.06,0.00043977,120]
[394919144,1764119133955,-574.67,0.00043977,120]
[394919145,1764119133980,-546.62,0.00043977,120]
[394919146,1764119134005,-1087.47190721,0.00043987,120]
[394919147,1764119134032,-362.1039191,0.00043999,120]
[394919148,1764119134057,-240.987722,0.00044,120]
[394919149,1764119134085,-152.0,0.00044,120]
[394919150,1764119134112,-176.0,0.00044,120]
[394919151,1764119134140,-468.85741624,0.00044,120]
[394919152,1764119134165,-258.52550699,0.00044,120]
[394919153,1764119134193,-200.0,0.00044,120]
[394919154,1764119134218,-245.38058851,0.00044,120]
[394919155,1764119134244,-1129.85724207,0.00044,120]
[394919156,1764119134269,-412.124541,0.00044,57]
[394919157,1764119134295,-500.0,0.00044017,60]
[394919158,1764119134320,-2745.17,0.00044017,120]
[394919159,1764119134347,-210.0,0.00044181,120]
[394919160,1764119134374,-500.0,0.00044187,120]
[394919161,1764119134400,-500.0,0.00044187,120]
[394919162,1764119134426,-158.67963681,0.0004425,120]
[394919163,1764119134453,-500.0,0.00044251,120]
[394919164,1764119134481,-3281.06,0.00044251,120]
[394919165,1764119134508,-574.67,0.00044251,120]
[394919166,1764119134534,-546.62,0.00044251,120]
[394919167,1764119134561,-500.0,0.00044291,60]
[394919168,1764119134588,-2745.17,0.00044291,120]
[394919169,1764119134623,-153.46,0.00044338,120]
[394919170,1764119134657,-930.585557,0.000444,33]
[394919171,1764119134684,-500.0,0.00044461,120]
[394919172,1764119134710,-500.0,0.00044461,120]
[394919173,1764119134736,-152.0,0.000445,120]
[394919174,1764119134765,-176.0,0.000445,120]
[394919175,1764119134792,-301.51082475,0.000445,120]
[394919176,1764119134820,-643.2532,0.00044525,120]
[394919177,1764119134847,-3281.06,0.00044525,120]
[394919178,1764119134873,-574.67,0.00044525,120]
[394919179,1764119134899,-546.62,0.00044525,120]
[394919180,1764119134931,-500.0,0.00044565,60]
[394919181,1764119134960,-2745.17,0.00044565,120]
[394919182,1764119134988,-150.48,0.00044591,30]
[394919183,1764119135016,-1003.57,0.0004464,120]
[394919184,1764119135046,-3249.03,0.000447,30]
[394919185,1764119135076,-500.0,0.00044735,120]
[394919186,1764119135103,-500.0,0.00044735,120]
[394919187,1764119135131,-3281.06,0.00044799,120]
[394919188,1764119135158,-574.67,0.00044799,120]
[394919189,1764119135184,-546.62,0.00044799,120]
[394919190,1764119135210,-434.30536283,0.000448,120]
[394919191,1764119135236,-500.0,0.00044839,60]
[394919192,1764119135263,-2745.17,0.00044839,120]
[394919193,1764119135289,-440.77408559,0.0004489,120]
[394919194,1764119135315,-848.95183072,0.000449,30]
[394919195,1764119135344,-50000.0,0.00045,45]
[394919196,1764119135371,-176.0,0.00045,120]
[394919197,1764119135396,-160.88069449,0.00045,120]
[394919198,1764119135423,-2000.76197475,0.00045,120]
[394919199,1764119135450,-823.16694156,0.00045,120]
[394919200,1764119135478,-276.08037868,0.00045,120]
[394919201,1764119135508,-191.518537,0.00045,120]
[394919202,1764119135536,-300.0,0.00045,60]
[394919203,1764119135562,-157.9820825,0.00045,75]
[394919204,1764119135588,-150.0,0.00045,120]
[394919205,1764119135614,-373.94254415,0.00045,120]
[394919206,1764119135641,-7800.99723185,0.00045,120]
[394919207,1764119135667,-237.00038199,0.00045,120]
[394919208,1764119135693,-499.65110269,0.00045,120]
[394919209,1764119135718,-1384.05852171,0.00045,120]
[394919210,1764119135743,-1087.71518826,0.00045,120]
[394919211,1764119135768,-272.84659061,0.00045,120]
[394919212,1764119135793,-200.0,0.00045,120]
[394919213,1764119135818,-150.0,0.00045,120]
[394919214,1764119135844,-150.0,0.00045,120]
[394919215,1764119135870,-420.0,0.00045,120]
[394919216,1764119135895,-150.0,0.00045,120]
[394919217,1764119135921,-647.13834212,0.00045009,120]
[394919218,1764119135950,-500.0,0.00045009,120]
[394919219,1764119135977,-3281.06,0.00045073,120]
[394919220,1764119136003,-574.67,0.00045073,120]
[394919221,1764119136032,-546.62,0.00045073,120]
[394919222,1764119136058,-152.0,0.000451,120]
[394919223,1764119136085,-500.0,0.00045113,60]
[394919224,1764119136111,-2745.17,0.00045113,120]
[394919225,1764119136139,-289.26196934,0.000452,120]
[394919226,1764119136165,-500.0,0.00045283,120]
[394919227,1764119136195,-3281.06,0.00045347,120]
[394919228,1764119136222,-574.67,0.00045347,120]
[394919229,1764119136375,-546.62,0.00045347,120]
[394919230,1764119136403,-1003.57,0.0004536,120]
[394919231,1764119136430,-500.0,0.00045387,60]
[394919232,1764119136458,-2745.17,0.00045387,120]
[394919233,1764119136487,-176.0,0.000455,120]
[394919234,1764119136514,-1006.83167867,0.000455,120]
[394919235,1764119136543,-500.0,0.00045557,120]
[394919236,1764119136572,-152.0,0.000456,120]
[394919237,1764119136599,-685.90587805,0.000456,120]
[394919238,1764119136625,-3249.03,0.000456,30]
[394919239,1764119136664,-3281.06,0.00045621,120]
[394919240,1764119136690,-574.67,0.00045621,120]
[394919241,1764119136716,-546.62,0.00045621,120]
[394919242,1764119136742,-500.0,0.00045661,60]
[394919243,1764119136768,-2745.17,0.00045661,120]
[394919244,1764119136794,-975.04713189,0.000457,120]
[394919245,1764119136820,-500.0,0.00045831,120]
[394919246,1764119136846,-151.35872896,0.0004589,120]
[394919247,1764119136872,-3281.06,0.00045895,120]
[394919248,1764119136899,-574.67,0.00045895,120]
[394919249,1764119136926,-546.62,0.00045895,120]
[394919250,1764119136958,-500.0,0.00045935,60]
[394919251,1764119136985,-2745.17,0.00045935,120]
[394919252,1764119137014,-176.0,0.00046,120]
[394919253,1764119137041,-1000.0,0.00046,30]
[394919254,1764119137068,-204.61712302,0.00046,30]
[394919255,1764119137096,-811.68713886,0.00046,30]
[394919256,1764119137123,-201.58496934,0.00046,120]
[394919257,1764119137150,-367.52829706,0.00046,90]
[394919258,1764119137179,-692.43078714,0.00046,120]
[394919259,1764119137208,-1003.57,0.0004608,120]
[394919260,1764119137234,-557.92241958,0.00046105,120]
[394919261,1764119137263,-3281.06,0.00046169,120]
[394919262,1764119137289,-574.67,0.00046169,120]
[394919263,1764119137315,-546.62,0.00046169,120]
[394919264,1764119137342,-152.0,0.000462,120]
[394919265,1764119137369,-500.0,0.00046209,60]
[394919266,1764119137396,-2745.17,0.00046209,120]
[394919267,1764119137424,-527.0,0.0004622,120]
[394919268,1764119137455,-400.02992183,0.000464,120]
[394919269,1764119137484,-3281.06,0.00046443,120]
[394919270,1764119137513,-574.67,0.00046443,120]
[394919271,1764119137540,-546.62,0.00046443,120]
[394919272,1764119137568,-500.0,0.00046483,60]
[394919273,1764119137595,-2745.17,0.00046483,120]
[394919274,1764119137623,-176.0,0.000465,120]
[394919275,1764119137651,-152.0,0.000467,120]
[394919276,1764119137679,-3281.06,0.00046717,120]
[394919277,1764119137705,-574.67,0.00046717,120]
[394919278,1764119137731,-546.62,0.00046717,120]
[394919279,1764119137756,-500.0,0.00046757,60]
[394919280,1764119137782,-2745.17,0.00046757,120]
[394919281,1764119137808,-1003.57,0.000468,120]
[394919282,1764119137836,-610.54260786,0.000469,120]
[394919283,1764119137863,-3281.2659,0.00046991,120]
[394919284,1764119137889,-574.72915823,0.00046991,120]
[394919285,1764119137917,-546.70874875,0.00046991,120]
[394919286,1764119137947,-176.0,0.00047,120]
[394919287,1764119137974,-324.29657148,0.00047,120]
[394919288,1764119138000,-492.88054449,0.00047,120]
[394919289,1764119138028,-150.0,0.00047,120]
[394919290,1764119138054,-3445.27137838,0.00047,30]
[394919291,1764119138081,-2000.0,0.00047,60]
[394919292,1764119138107,-1990.88511388,0.00047,120]
[394919293,1764119138133,-500.0,0.00047031,60]
[394919294,1764119138160,-2745.17,0.00047031,120]
[394919295,1764119138188,-152.0,0.000472,120]
[394919296,1764119138216,-205.62630148,0.00047305,60]
[394919297,1764119138243,-2745.17,0.00047305,120]
[394919298,1764119138272,-221.83973794,0.00047318,120]
[394919299,1764119138301,-176.0,0.000474,120]
[394919300,1764119138328,-867.23668355,0.000475,120]
[394919301,1764119138355,-210.95930592,0.000475,120]
[394919302,1764119138382,-1003.57,0.0004752,120]
[394919303,1764119138409,-2745.17,0.00047579,120]
[394919304,1764119138435,-153.46,0.00047762,120]
[394919305,1764119138462,-152.0,0.000478,120]
[394919306,1764119138490,-632.05381312,0.000478,120]
[394919307,1764119138518,-2745.17,0.00047853,120]
[394919308,1764119138546,-176.0,0.000479,120]
[394919309,1764119138574,-1277.51382936,0.00048,120]
[394919310,1764119138600,-352.21373589,0.00048,120]
[394919311,1764119138629,-546.08090937,0.00048,120]
[394919312,1764119138655,-300.0,0.00048,120]
[394919313,1764119138681,-260.08812925,0.00048,120]
[394919314,1764119138706,-1591.34242781,0.00048,120]
[394919315,1764119138733,-206.88794039,0.00048,120]
[394919316,1764119138760,-313.68164887,0.00048,120]
[394919317,1764119138787,-201.0,0.00048,120]
[394919318,1764119138815,-3249.03,0.00048,30]
[394919319,1764119138844,-150.0,0.00048,120]
[394919320,1764119138872,-150.0,0.00048,120]
[394919321,1764119138899,-700.0,0.00048,120]
[394919322,1764119138926,-692.43078714,0.00048,120]
[394919323,1764119138958,-645.84610173,0.00048,120]
[394919324,1764119138984,-150.0,0.00048,120]
[394919325,1764119139012,-2745.31613293,0.00048127,120]
[394919326,1764119139040,-570.0,0.000482,120]
[394919327,1764119139068,-152.0,0.000483,120]
[394919328,1764119139095,-2993.76955312,0.000483,120]
[394919329,1764119139125,-176.0,0.000484,120]
[394919330,1764119139155,-900.0,0.0004855,120]
[394919331,1764119139183,-286.62155856,0.000487,120]
[394919332,1764119139341,-1000.0,0.00048748,31]
[394919333,1764119139370,-196.56,0.000488,30]
[394919334,1764119139397,-2202.33,0.000488,120]
[394919335,1764119139424,-25145.72909807,0.00048875,60]
[394919336,1764119139454,-7925.20738335,0.00048875,60]
[394919337,1764119139481,-850.16133976,0.0004888,120]
[394919338,1764119139508,-254.97863359,0.0004888,120]
[394919339,1764119139535,-152.0,0.000489,120]
[394919340,1764119139562,-176.0,0.000489,120]
[394919341,1764119139589,-536.71950262,0.000489,120]
[394919342,1764119139615,-516.8496455,0.0004897,60]
[394919343,1764119139641,-178.87,0.00049,120]
[394919344,1764119139668,-817.93502727,0.00049,120]
[394919345,1764119139693,-789.50584037,0.00049,30]
[394919346,1764119139718,-283.2827778,0.00049,120]
[394919347,1764119139743,-563.36190807,0.00049,120]
[394919348,1764119139768,-101024.8173163,0.00049,30]
[394919349,1764119139792,-147.12154849,0.00049,120]
[394919350,1764119152358,-654.3,0.00039549,60]
[394919351,1764119152416,-213.0,0.0004295,30]
[394919352,1764119152450,-915.05,0.00043977,120]
[394919353,1764119152484,-213.0,0.0004496,30]
[394919354,1764119152513,-150.0,0.00045,120]
[394919355,1764119152542,-213.0,0.0004698,30]
[394919356,1764119152573,-150.0,0.00048,120]
[394919357,1764119152606,-213.0,0.0004899,30]
[394919358,1764119152634,-283.07600444,0.00049,120]
[394919359,1764119152661,-1226.86779792,0.00049,120]
[394919360,1764119152689,-1380.0,0.00049,120]
[394919361,1764119152717,-10000.0,0.00049,120]
[394919362,1764119152744,-150.0,0.00049,120]
[394919363,1764119152769,-495.28930156,0.00049315,120]
[394919364,1764119152796,-759.53,0.00049315,120]
[394919365,1764119152821,-759.53,0.00049315,120]
[394919366,1764119152848,-759.53,0.00049315,120]
[394919367,1764119152873,-759.53,0.00049315,120]
[394919368,1764119152900,-759.53,0.00049315,120]
[394919369,1764119152927,-759.53,0.00049315,120]
[394919370,1764119152957,-759.53,0.00049315,120]
[394919371,1764119152984,-759.53,0.00049315,120]
[394919372,1764119153011,-759.53,0.00049315,120]
[394919373,1764119153042,-759.53,0.00049315,120]
[394919374,1764119153075,-759.53,0.00049315,120]
[394919375,1764119153105,-759.53,0.00049315,120]
[394919376,1764119153139,-759.53,0.00049315,120]
[394919377,1764119153169,-759.53,0.00049315,120]
[394919378,1764119153197,-759.53,0.00049315,120]
[394919379,1764119153226,-759.53,0.00049315,120]
[394919380,1764119153253,-759.53,0.00049315,120]
[394919381,1764119153281,-759.53,0.00049315,120]
[394919382,1764119153309,-759.53,0.00049315,120]
[394919383,1764119153341,-759.53,0.00049315,120]
[394919384,1764119153369,-759.53,0.00049315,120]
[394919385,1764119153398,-759.53,0.00049315,120]
[394919386,1764119153425,-759.53,0.00049315,120]
[394919387,1764119153453,-759.56439053,0.00049315,120]
[394919388,1764119153482,-152.0,0.000494,120]
[394919389,1764119153512,-176.0,0.000494,120]
[394919390,1764119153542,-1000.0,0.00049431,120]
[394919391,1764119153572,-880.10863966,0.000495,120]
[394919392,1764119153605,-1310.81676176,0.000496,120]
[394919393,1764119153634,-628.24562922,0.000498,30]
[394919394,1764119153662,-2450.58069557,0.000498,120]
[394919395,1764119153689,-445.0,0.00049886,120]
[394919396,1764119153718,-176.0,0.000499,120]
[394919397,1764119153745,-2000.0,0.000499,120]
[394919398,1764119153771,-15142.3773603,0.000499,120]
[394919399,1764119153798,-100486.94861,0.00049999,120]
[394919400,1764119153826,-50000.0,0.0005,50]
[394919401,1764119153853,-152.0,0.0005,120]
[394919402,1764119153879,-1086.816379,0.0005,120]
[394919403,1764119153908,-225.4917712,0.0005,120]
[394919404,1764119153938,-603.87086196,0.0005,120]
[394919405,1764119153966,-165.40966591,0.0005,120]
[394919406,1764119153995,-500.0,0.0005,30]
[394919407,1764119154022,-200.0,0.0005,120]
[394919408,1764119154050,-1500.0,0.0005,120]
[394919409,1764119154081,-300.0,0.0005,120]
[394919410,1764119154111,-212.22901696,0.0005,120]